bitfinex/quotes_BTCUSD_20211001
["timestamp","ask_amount","ask_price","bid_price","bid_amount"]
[1633079390171,1.10133123,44863.0,44862.0,0.0012]
[1633079390366,0.46855315,44860.0,44858.0,0.0008]
[1633079390570,0.3,44858.0,44856.0,0.00091]
[1633079390769,0.63118412,44857.0,44856.0,0.00091]
[1633079391163,0.85568208,44857.0,44856.0,0.00091]
[1633079391366,0.85568208,44857.0,44853.0,0.0012]
[1633079391565,0.20306159,44856.0,44853.0,0.0012]
[1633079391765,0.2271,44854.0,44853.0,0.0012]
[1633079391965,1.08622822,44854.0,44853.0,0.0012]
[1633079392164,1.18809483,44854.0,44853.0,0.0012]
[1633079392965,1.29809483,44854.0,44853.0,0.0012]
[1633079393764,1.29862493,44854.0,44853.0,0.0012]
[1633079393964,1.33162493,44854.0,44853.0,0.0012]
[1633079394566,1.43288528,44854.0,44853.0,0.0012]
[1633079395165,1.39988528,44854.0,44853.0,0.0012]
[1633079395971,1.43388528,44854.0,44853.0,0.0012]
[1633079396172,1.39086716,44854.0,44853.0,0.0012]
[1633079396371,1.05136606,44854.0,44853.0,0.0012]
[1633079397770,1.01736606,44854.0,44853.0,0.0012]
[1633079397966,1.05436606,44854.0,44853.0,0.0012]
[1633079398768,1.05383596,44854.0,44853.0,0.0012]
[1633079398969,0.57683596,44854.0,44853.0,0.0012]
[1633079399169,0.47557561,44854.0,44853.0,0.0012]
[1633079399368,0.43857561,44854.0,44853.0,0.0012]
[1633079399572,0.43910571,44854.0,44853.0,0.0012]
[1633079399971,0.4723371,44854.0,44853.0,0.0012]
[1633079400172,0.471807,44854.0,44853.0,0.0012]
[1633079401036,0.948807,44854.0,44853.0,0.0012]
[1633079401235,0.94757561,44854.0,44853.0,0.0012]
[1633079401438,0.91557561,44854.0,44853.0,0.0012]
[1633079402034,0.94657561,44854.0,44853.0,0.0012]
[1633079403640,0.9173932,44854.0,44853.0,0.0012]
[1633079403840,0.9168631,44854.0,44853.0,0.0012]
[1633079404042,0.9488631,44854.0,44853.0,0.0012]
[1633079404842,0.94757561,44854.0,44853.0,0.0012]
[1633079405241,0.91557561,44854.0,44853.0,0.0012]
[1633079405445,0.91610571,44854.0,44853.0,0.0012]
[1633079405647,0.91557561,44854.0,44853.0,0.0012]
[1633079406046,0.95157561,44854.0,44853.0,0.0012]
[1633079406847,0.95210571,44854.0,44853.0,0.0012]
[1633079407048,0.15465,44853.0,44840.0,0.12417864]
[1633079407245,0.557586,44852.0,44840.0,0.0012]
[1633079407444,0.33410635,44851.0,44840.0,0.0012]
[1633079407644,0.07250469,44848.0,44843.0,0.0016]
[1633079407849,0.33965853,44847.0,44843.0,0.0016]
[1633079408046,0.36922655,44851.0,44844.0,0.18434274]
[1633079408247,0.2271,44846.0,44844.0,0.18434274]
[1633079408448,0.477,44846.0,44844.0,0.18434274]
[1633079408649,0.2499,44846.0,44844.0,0.18434274]
[1633079408847,0.223034,44850.0,44844.0,0.18434274]
[1633079409445,0.223034,44850.0,44847.0,0.0004271]
[1633079409646,0.226709,44849.0,44847.0,0.0004271]
[1633079409845,0.477,44848.0,44847.0,0.0004271]
[1633079410048,0.63165,44848.0,44847.0,0.0004271]
[1633079411245,0.96998094,44848.0,44847.0,0.0004271]
[1633079411448,0.63165,44848.0,44847.0,0.0004271]
[1633079412049,0.66365,44848.0,44847.0,0.0004271]
[1633079412849,0.66365,44848.0,44847.0,0.6004271]
[1633079413246,0.509,44848.0,44847.0,0.6004271]
[1633079413448,0.477,44848.0,44847.0,0.6004271]
[1633079414049,0.501,44848.0,44847.0,0.6004271]
[1633079414448,0.477,44848.0,44847.0,0.6004271]
[1633079415446,0.477,44848.0,44847.0,0.0004271]
[1633079415647,0.703709,44848.0,44847.0,0.0004271]
[1633079416046,0.735709,44848.0,44847.0,0.0004271]
[1633079417448,0.703709,44848.0,44847.0,0.0004271]
[1633079417850,0.15465,44847.0,44843.0,0.08522621]
[1633079418251,0.477,44844.0,44843.0,0.27559881]
[1633079420651,0.477,44844.0,44843.0,0.1903726]
[1633079420852,0.223033,44846.0,44843.0,0.1903726]
[1633079421255,0.223033,44846.0,44843.0,0.19047928]
[1633079421455,0.02,44844.0,44843.0,0.19047928]
[1633079421656,0.02,44844.0,44843.0,0.27084643]
[1633079421856,0.02,44844.0,44843.0,0.87084643]
[1633079422055,0.02,44844.0,44843.0,1.09755543]
[1633079422856,0.13,44844.0,44843.0,0.87084643]
[1633079423057,0.13,44844.0,44843.0,0.79047928]
[1633079424056,0.13,44844.0,44843.0,0.88987548]
[1633079424057,0.153,44844.0,44843.0,0.88987548]
[1633079425659,0.13,44844.0,44843.0,0.79047928]
[1633079425856,0.13,44844.0,44842.0,0.0016]
[1633079426056,0.153,44844.0,44842.0,0.0016]
[1633079426456,0.4029,44844.0,44842.0,0.0016]
[1633079426656,0.63,44844.0,44843.0,0.54386979]
[1633079427059,0.63,44844.0,44843.0,0.74543402]
[1633079427257,0.63,44844.0,44843.0,0.79901994]
[1633079427460,0.607,44844.0,44843.0,0.79901994]
[1633079427860,0.83004,44844.0,44843.0,0.79901994]
[1633079428057,0.83004,44844.0,44843.0,0.34901994]
[1633079428259,0.85304,44844.0,44843.0,0.14745571]
[1633079428658,0.85304,44844.0,44843.0,0.44745571]
[1633079429060,0.85304,44844.0,44843.0,0.14745571]
[1633079429660,0.85304,44844.0,44843.0,0.59745571]
[1633079429859,0.83004,44844.0,44843.0,0.60175533]
[1633079430260,0.85104,44844.0,44843.0,0.60175533]
[1633079430866,0.62394,44844.0,44843.0,0.15175533]
[1633079431061,0.37404,44844.0,44843.0,0.1465271]
[1633079431661,0.35304,44844.0,44843.0,0.1465271]
[1633079432066,0.70076775,44844.0,44843.0,0.1465271]
[1633079432263,0.72776775,44844.0,44843.0,0.1465271]
[1633079433464,0.70076775,44844.0,44843.0,0.1465271]
[1633079433664,0.70076775,44844.0,44843.0,0.6465271]
[1633079434065,0.60294,44844.0,44843.0,0.6465271]
[1633079434266,0.86604,44844.0,44843.0,0.6465271]
[1633079434679,0.334556,44845.0,44844.0,0.00048001]
[1633079434680,0.26541544,44845.0,44844.0,0.00048001]
[1633079435170,0.41711056,44849.0,44847.0,0.223009]
[1633079435371,0.19407112,44849.0,44847.0,0.223009]
[1633079435969,0.19407112,44849.0,44848.0,0.00429962]
[1633079436168,0.23007112,44849.0,44847.0,0.22493202]
[1633079436766,0.23007112,44849.0,44848.0,0.20594184]
[1633079437571,0.05,44855.0,44848.0,0.20594184]
[1633079437772,0.05,44855.0,44848.0,0.55036925]
[1633079437973,0.9439301,44861.0,44849.0,0.226709]
[1633079438170,0.0012859,44856.0,44848.0,0.55036925]
[1633079438370,0.22483473,44856.0,44848.0,0.5747903]
[1633079438569,0.22430463,44856.0,44848.0,0.5747903]
[1633079438769,0.24321739,44853.0,44848.0,0.5747903]
[1633079438968,0.334524,44851.0,44849.0,0.09718081]
[1633079439167,0.33422488,44851.0,44849.0,0.09718081]
[1633079439567,0.33422488,44851.0,44848.0,0.23894184]
[1633079440166,0.33422488,44851.0,44848.0,0.20594184]
[1633079440368,0.36122488,44851.0,44848.0,0.23394184]
[1633079440569,0.36122488,44851.0,44850.0,0.12409415]
[1633079442166,0.33422488,44851.0,44850.0,0.12409415]
[1633079442369,0.33422488,44851.0,44850.0,0.12417843]
[1633079443168,0.44422488,44851.0,44850.0,0.12417843]
[1633079443371,0.44422488,44851.0,44850.0,8.428e-05]
[1633079444171,0.44422488,44851.0,44848.0,0.12722612]
[1633079444372,0.47222488,44851.0,44850.0,0.01]
[1633079445168,0.69946398,44851.0,44850.0,0.01]
[1633079445369,0.69893388,44851.0,44850.0,0.01]
[1633079446370,0.72793388,44851.0,44850.0,0.013]
[1633079447171,0.69993388,44851.0,44850.0,0.003]
[1633079448575,0.47322488,44851.0,44850.0,0.003]
[1633079448973,0.139,44851.0,44850.0,0.003]
[1633079449173,0.139,44851.0,44850.0,0.000612]
[1633079449579,0.47661183,44851.0,44850.0,0.000612]
[1633079449776,1.26162293,44851.0,44844.0,0.00048001]
[1633079449980,0.00126696,44845.0,44844.0,0.00048001]
[1633079450375,0.00126696,44845.0,44841.0,0.0221503]
[1633079450573,0.00126696,44845.0,44842.0,0.5683951]
[1633079450775,0.34895673,44845.0,44842.0,0.5683951]
[1633079450973,0.34895673,44845.0,44842.0,0.5110071]
[1633079451173,0.35278358,44848.0,44842.0,0.5110071]
[1633079452173,0.17888634,44847.0,44842.0,0.5110071]
[1633079452974,0.51344434,44847.0,44842.0,0.5110071]
[1633079453175,0.51344434,44847.0,44842.0,0.3416861]
[1633079453777,0.51344434,44847.0,44841.0,0.0221503]
[1633079453778,0.2232,44845.0,44841.0,0.0221503]
[1633079453981,0.51344434,44847.0,44840.0,0.002]
[1633079453982,0.07790627,44842.0,44840.0,0.002]
[1633079454181,0.65786394,44841.0,44840.0,0.002]
[1633079454379,0.21370747,44841.0,44840.0,0.002]
[1633079454576,0.31370747,44841.0,44840.0,0.002]
[1633079454776,0.31317737,44841.0,44840.0,0.002]
[1633079454979,0.21317737,44841.0,44840.0,0.002]
[1633079455182,0.21370747,44841.0,44840.0,0.002]
[1633079455577,0.19517839,44840.0,44836.0,0.22366812]
[1633079455778,0.226841,44839.0,44836.0,0.22366812]
[1633079456176,0.19517839,44840.0,44836.0,0.22366812]
[1633079456577,0.00120525,44839.0,44836.0,0.22366812]
[1633079456979,0.19517839,44840.0,44836.0,0.32157016]
[1633079457441,0.00173382,44843.0,44836.0,0.32157016]
[1633079457647,0.9599,44850.0,44842.0,0.10933747]
[1633079457844,0.9599,44850.0,44843.0,0.14706905]
[1633079458043,0.9599,44850.0,44847.0,0.18385114]
[1633079458242,0.00128257,44856.0,44848.0,0.0223]
[1633079458445,0.07735118,44856.0,44848.0,0.38472431]
[1633079458645,0.2232,44852.0,44848.0,0.38472431]
[1633079458844,0.00120061,44850.0,44848.0,0.0223]
[1633079459243,0.00120061,44850.0,44845.0,0.223012]
[1633079459642,0.00120061,44850.0,44843.0,1.7170773]
[1633079459843,0.00120061,44850.0,44844.0,0.19983314]
[1633079459844,0.21638305,44849.0,44844.0,0.19983314]
[1633079460243,0.21638305,44849.0,44843.0,1.7170773]
[1633079460443,0.29141116,44849.0,44843.0,1.7170773]
[1633079461247,0.29141116,44849.0,44845.0,0.223012]
[1633079461444,0.21638305,44849.0,44845.0,0.223012]
[1633079461646,0.21638305,44849.0,44845.0,0.219241]
[1633079463849,0.32638305,44849.0,44845.0,0.219241]
[1633079464847,0.11,44849.0,44845.0,0.219241]
[1633079465048,0.43686829,44849.0,44845.0,0.219241]
[1633079465446,0.11,44849.0,44845.0,0.219241]
[1633079465848,0.0005301,44848.0,44845.0,0.219241]
[1633079466249,0.1105301,44849.0,44845.0,0.30616524]
[1633079466451,0.1105301,44849.0,44845.0,0.219241]
[1633079466651,0.00128011,44846.0,44840.0,0.223038]
[1633079466854,0.00121818,44841.0,44840.0,0.223038]
[1633079467052,0.00121818,44841.0,44840.0,0.449879]
[1633079467851,0.00121818,44841.0,44840.0,0.216852]
[1633079468452,0.36721114,44841.0,44840.0,0.216852]
[1633079468651,0.36774124,44841.0,44840.0,0.216852]
[1633079468851,0.36721114,44841.0,44840.0,0.216852]
[1633079469453,0.36774124,44841.0,44840.0,0.216852]
[1633079469653,0.59458224,44841.0,44840.0,0.216852]
[1633079469852,0.36721114,44841.0,44840.0,0.216852]
[1633079471458,0.64405214,44841.0,44836.0,0.00058912]
[1633079471657,0.0005301,44840.0,44836.0,0.00058912]
[1633079471856,0.41774124,44841.0,44836.0,0.00058912]
[1633079472056,0.41721114,44841.0,44836.0,0.00058912]
[1633079473055,0.41721114,44841.0,44835.0,0.20635274]
[1633079473255,0.75183814,44841.0,44835.0,0.42945274]
[1633079473657,0.41721114,44841.0,44835.0,0.42945274]
[1633079473854,0.41774124,44841.0,44835.0,0.42945274]
[1633079474057,0.41990435,44841.0,44837.0,0.08143967]
[1633079474260,0.05269321,44841.0,44837.0,0.08143967]
[1633079474460,0.00269321,44841.0,44837.0,0.08143967]
[1633079475461,0.00269321,44841.0,44835.0,0.42945274]
[1633079475859,0.3388513,44841.0,44835.0,0.42945274]
[1633079476264,0.3888513,44841.0,44836.0,0.18389573]
[1633079476462,0.3888513,44841.0,44836.0,0.09745455]
[1633079477261,0.39252641,44841.0,44836.0,0.09745455]
[1633079477460,0.05636832,44841.0,44836.0,0.09745455]
[1633079477862,0.00636832,44841.0,44836.0,0.09745455]
[1633079478260,0.34099432,44841.0,44836.0,0.09745455]
[1633079478659,0.39099432,44841.0,44836.0,0.09745455]
[1633079479259,0.39099432,44841.0,44835.0,0.42945274]
[1633079479860,0.334633,44840.0,44835.0,0.42945274]
[1633079480065,0.00636832,44840.0,44835.0,0.42945274]
[1633079480260,0.00636832,44840.0,44835.0,0.42923874]
[1633079480461,0.00636832,44840.0,44835.0,0.51825492]
[1633079481265,0.00636832,44840.0,44836.0,0.226859]
[1633079481864,0.00636832,44840.0,44835.0,0.51825492]
[1633079482065,0.00636832,44840.0,44836.0,0.226859]
[1633079482668,0.00636832,44840.0,44835.0,0.51825492]
[1633079482864,0.00636832,44840.0,44836.0,0.226859]
[1633079483267,0.00636832,44840.0,44835.0,0.42923874]
[1633079483469,0.00636832,44840.0,44835.0,0.42101774]
[1633079483868,0.00636832,44840.0,44836.0,0.226859]
[1633079484264,0.00636832,44840.0,44835.0,0.52095128]
[1633079485465,0.00636832,44840.0,44835.0,0.42101774]
[1633079485665,0.00636832,44840.0,44835.0,0.42079805]
[1633079486266,0.00636832,44840.0,44836.0,0.226859]
[1633079486466,0.00636832,44840.0,44836.0,0.226144]
[1633079486666,0.00636832,44840.0,44836.0,0.21045691]
[1633079487068,0.00636832,44840.0,44837.0,0.53272127]
[1633079487271,0.00636832,44840.0,44838.0,0.144506]
[1633079488069,0.00636832,44840.0,44839.0,0.684546]
[1633079488268,0.00636832,44840.0,44839.0,0.894989]
[1633079488469,0.00636832,44840.0,44839.0,0.544989]
[1633079489069,0.00636832,44840.0,44839.0,0.210443]
[1633079489670,0.00136832,44840.0,44839.0,0.210443]
[1633079489871,0.00470316,44840.0,44839.0,0.2085424]
[1633079491072,0.00470316,44840.0,44839.0,0.5085424]
[1633079491276,0.00470316,44840.0,44839.0,1.15953702]
[1633079491673,0.00470316,44840.0,44839.0,0.8308424]
[1633079491871,0.00470316,44840.0,44839.0,0.5308424]
[1633079492073,0.00470316,44840.0,44839.0,1.1108424]
[1633079492271,0.00470316,44840.0,44839.0,1.4108424]
[1633079492875,0.35127318,44853.0,44850.0,0.00649684]
[1633079493074,0.226859,44852.0,44849.0,0.22303]
[1633079494073,0.226859,44852.0,44849.0,0.11303]
[1633079494273,0.561403,44852.0,44849.0,0.11303]
[1633079494473,0.585403,44852.0,44850.0,2.45737883]
[1633079494674,0.358544,44852.0,44850.0,2.45737883]
[1633079495473,0.358544,44852.0,44849.0,0.14103]
[1633079495674,0.226824,44851.0,44849.0,0.14103]
[1633079495874,0.276824,44851.0,44849.0,0.11303]
[1633079496075,0.276824,44851.0,44849.0,0.14103]
[1633079497076,0.05,44851.0,44849.0,0.14103]
[1633079497477,0.226824,44850.0,44849.0,0.11303]
[1633079497878,0.05,44851.0,44849.0,0.11303]
[1633079498077,0.384544,44852.0,44849.0,0.11303]
[1633079498278,0.226824,44851.0,44849.0,0.11303]
[1633079498879,0.05,44852.0,44849.0,0.44015615]
[1633079499078,0.226824,44851.0,44849.0,0.11303]
[1633079499481,0.276824,44851.0,44849.0,0.11303]
[1633079500381,0.276824,44851.0,44849.0,0.14103]
[1633079502581,0.276824,44851.0,44849.0,0.16903]
[1633079503381,0.276824,44851.0,44849.0,0.11303]
[1633079503782,0.386824,44851.0,44849.0,0.11303]
[1633079504783,0.00126988,44850.0,44849.0,0.13651097]
[1633079504981,0.22809388,44850.0,44849.0,0.13651097]
[1633079505985,1.86790548,44850.0,44849.0,0.13651097]
[1633079506386,1.86790548,44850.0,44849.0,0.10851097]
[1633079506387,1.86843558,44850.0,44849.0,0.10851097]
[1633079506583,1.89143558,44850.0,44849.0,0.13651097]
[1633079507182,1.89090548,44850.0,44849.0,0.13651097]
[1633079508385,1.8896356,44850.0,44849.0,0.12436397]
[1633079509785,1.89088607,44850.0,44849.0,0.12436397]
[1633079510185,1.86788607,44850.0,44849.0,0.09636397]
[1633079511185,1.89388607,44850.0,44849.0,0.12436397]
[1633079512047,1.91988607,44850.0,44849.0,0.15236397]
[1633079513450,1.91988607,44850.0,44849.0,0.12436397]
[1633079513650,1.86788607,44850.0,44849.0,0.09636397]
[1633079514048,1.89388607,44850.0,44849.0,0.12436397]
[1633079515853,1.86788607,44850.0,44849.0,0.09636397]
[1633079516056,1.89288607,44850.0,44849.0,0.22303]
[1633079516452,1.89288607,44850.0,44849.0,0.15845741]
[1633079517453,1.86788607,44850.0,44849.0,0.15845741]
[1633079518053,1.86788607,44850.0,44849.0,0.89316085]
[1633079518259,1.6648116,44850.0,44849.0,0.50071567]
[1633079518458,0.025,44850.0,44849.0,0.16546085]
[1633079518658,0.025,44850.0,44849.0,0.94228485]
[1633079519254,0.025,44850.0,44849.0,1.27677785]
[1633079519855,0.025,44850.0,44849.0,1.19547441]
[1633079520257,0.025,44850.0,44849.0,1.46455323]
[1633079520459,0.025,44850.0,44849.0,1.22447441]
[1633079521862,0.16,44851.0,44849.0,1.16747441]
[1633079522064,0.16,44851.0,44850.0,0.726134]
[1633079522266,0.16,44851.0,44850.0,0.748434]
[1633079523062,0.16,44851.0,44850.0,0.148434]
[1633079523465,0.11,44851.0,44850.0,0.148434]
[1633079524462,0.16,44851.0,44850.0,0.148434]
[1633079524662,0.16,44851.0,44850.0,0.548434]
[1633079525065,0.11,44851.0,44850.0,0.548434]
[1633079527069,0.11,44851.0,44850.0,0.88623399]
[1633079528467,0.11,44851.0,44850.0,0.548434]
[1633079528667,0.11,44851.0,44850.0,1.248434]
[1633079528869,0.11,44851.0,44850.0,1.57794577]
[1633079529267,0.11,44851.0,44850.0,1.248434]
[1633079530872,0.31787327,44861.0,44859.0,0.222943]
[1633079531073,0.13027711,44867.0,44859.0,0.437889]
[1633079531074,0.06680586,44867.0,44859.0,0.437889]
[1633079531279,0.06680586,44867.0,44860.0,0.3223]
[1633079531474,0.06680586,44867.0,44861.0,0.47663801]
[1633079531675,0.06680586,44867.0,44862.0,0.27049558]
[1633079531876,0.06680586,44867.0,44864.0,0.222891]
[1633079532074,0.06680586,44867.0,44865.0,0.226803]
[1633079532474,0.06680586,44867.0,44866.0,1.18472052]
[1633079532674,0.06680586,44867.0,44866.0,1.31073352]
[1633079533274,0.06680586,44867.0,44866.0,0.51073352]
[1633079533473,0.06680586,44867.0,44866.0,0.91073352]
[1633079533675,0.12358586,44867.0,44866.0,0.93973352]
[1633079533873,0.12358586,44867.0,44866.0,0.93934652]
[1633079534076,0.23358586,44867.0,44866.0,0.93934652]
[1633079534475,0.23358586,44867.0,44866.0,1.23934652]
[1633079534875,0.23358586,44867.0,44866.0,0.93934652]
[1633079535275,0.23358586,44867.0,44866.0,1.23934652]
[1633079535476,0.23358586,44867.0,44866.0,1.53934652]
[1633079535679,0.23358586,44867.0,44866.0,1.53264652]
[1633079535880,0.12358586,44867.0,44866.0,1.63264652]
[1633079536477,0.12358586,44867.0,44866.0,1.66064652]
[1633079538279,0.12358586,44867.0,44866.0,1.69064652]
[1633079538678,0.12358586,44867.0,44866.0,1.306313]
[1633079540478,0.12358586,44867.0,44866.0,1.748313]
[1633079540878,0.12358586,44867.0,44866.0,1.248313]
[1633079541279,0.12358586,44867.0,44866.0,0.948313]
[1633079541481,0.12358586,44867.0,44866.0,1.348313]
[1633079541686,0.12358586,44867.0,44866.0,1.378313]
[1633079543888,0.12358586,44867.0,44866.0,1.348313]
[1633079544483,0.12358586,44867.0,44866.0,1.748313]
[1633079544688,0.12358586,44867.0,44866.0,1.778313]
[1633079545685,0.13358586,44867.0,44866.0,1.778313]
[1633079546091,0.13358586,44867.0,44866.0,0.878313]
[1633079547488,0.13358586,44867.0,44866.0,1.378313]
[1633079547889,0.13358586,44867.0,44866.0,1.478313]
[1633079548088,0.13358586,44867.0,44866.0,0.978313]
[1633079548288,0.13358586,44867.0,44866.0,1.428313]
[1633079549688,0.13358586,44867.0,44866.0,0.978313]
[1633079550289,0.13358586,44867.0,44866.0,1.748313]
[1633079551091,0.13358586,44867.0,44866.0,0.948313]
[1633079551291,0.13358586,44867.0,44866.0,1.498313]
[1633079551492,0.13358586,44867.0,44866.0,0.948313]
[1633079551694,0.13358586,44867.0,44866.0,1.394071]
[1633079552895,0.13358586,44867.0,44866.0,1.094071]
[1633079553095,0.13358586,44867.0,44866.0,0.126013]
[1633079553096,0.13482976,44867.0,44866.0,0.126013]
[1633079553362,0.13482976,44867.0,44864.0,0.222891]
[1633079553895,0.16182976,44867.0,44864.0,0.222891]
[1633079554097,0.35741318,44867.0,44864.0,0.222891]
[1633079554895,0.16182976,44867.0,44864.0,0.222891]
[1633079555295,0.13358586,44867.0,44865.0,0.226824]
[1633079555494,0.13358586,44867.0,44865.0,0.561181]
[1633079555697,0.16058586,44867.0,44865.0,0.561181]
[1633079556495,0.16058586,44867.0,44865.0,0.49663837]
[1633079557494,0.13358586,44867.0,44865.0,0.49663837]
[1633079558294,0.16258586,44867.0,44865.0,0.52363837]
[1633079559899,0.16058586,44867.0,44865.0,0.52263837]
[1633079560301,0.2232,44866.0,44865.0,0.026]
[1633079560501,0.2232,44866.0,44864.0,0.222891]
[1633079560502,0.05852957,44866.0,44864.0,0.222891]
[1633079560897,0.0005301,44865.0,44864.0,0.222891]
[1633079561099,0.00178874,44865.0,44864.0,0.222891]
[1633079561303,0.00178874,44865.0,44855.0,0.222949]
[1633079561304,0.58018528,44865.0,44855.0,0.222949]
[1633079561505,0.00129983,44856.0,44855.0,0.222949]
[1633079561703,0.00129983,44856.0,44855.0,0.849734]
[1633079561897,0.00129983,44856.0,44855.0,0.97186627]
[1633079562297,0.00129983,44856.0,44855.0,1.15029523]
[1633079563703,0.39179986,44860.0,44855.0,1.15029523]
[1633079563904,0.05678,44860.0,44856.0,0.06157]
[1633079564301,0.06678,44860.0,44856.0,0.06157]
[1633079564903,0.06678,44860.0,44857.0,0.334412]
[1633079565104,0.06678,44860.0,44856.0,0.222942]
[1633079565370,0.31694754,44859.0,44857.0,0.22293]
[1633079565507,0.05678,44858.0,44857.0,0.22293]
[1633079565703,0.05678,44858.0,44857.0,0.799715]
[1633079567904,0.08478,44858.0,44857.0,0.825715]
[1633079568367,0.08478,44858.0,44857.0,0.472622]
[1633079568705,0.08478,44858.0,44857.0,0.432622]
[1633079569106,0.08478,44858.0,44857.0,0.205837]
[1633079569306,0.05678,44858.0,44857.0,0.179837]
[1633079569905,0.08478,44858.0,44857.0,0.505837]
[1633079570110,0.64757122,44858.0,44857.0,0.026]
[1633079570408,1.02488632,44858.0,44857.0,0.026]
[1633079570612,0.80168632,44858.0,44857.0,0.026]
[1633079570805,0.70115622,44858.0,44857.0,0.026]
[1633079571207,0.92435622,44858.0,44857.0,0.026]
[1633079571806,0.89635622,44858.0,44856.0,0.222942]
[1633079572005,0.224785,44857.0,44856.0,0.222942]
[1633079572209,0.05678,44857.0,44856.0,0.222942]
[1633079574013,0.05678,44857.0,44856.0,0.245942]
[1633079574014,0.08578,44857.0,44856.0,0.245942]
[1633079575410,0.05678,44857.0,44856.0,0.222942]
[1633079576008,0.08578,44857.0,44856.0,0.247942]
[1633079577210,0.08578,44857.0,44856.0,0.222942]
[1633079577409,0.05678,44857.0,44856.0,0.222942]
[1633079578011,0.07085078,44857.0,44856.0,0.246942]
[1633079579212,0.06894378,44857.0,44856.0,0.246942]
[1633079579616,0.0560792,44857.0,44856.0,0.222942]
[1633079580216,0.0800792,44857.0,44856.0,0.249942]
[1633079581081,0.0800792,44857.0,44856.0,0.584371]
[1633079581280,0.0800792,44857.0,44856.0,0.249942]
[1633079581977,0.0560792,44857.0,44856.0,0.222942]
[1633079582176,0.0820792,44857.0,44856.0,0.249942]
[1633079583979,0.1080792,44857.0,44856.0,0.276942]
[1633079584384,0.0820792,44857.0,44856.0,0.249942]
[1633079585977,0.0830792,44857.0,44856.0,0.249942]
[1633079586579,0.0560792,44857.0,44856.0,0.222942]
[1633079586980,0.0560792,44857.0,44856.0,0.222555]
[1633079587982,0.0830792,44857.0,44856.0,0.249555]
[1633079589986,0.0843248,44857.0,44856.0,0.027]
[1633079590185,0.1123248,44857.0,44856.0,0.052]
[1633079590385,0.0853248,44857.0,44856.0,0.025]
[1633079590587,0.1353248,44857.0,44856.0,0.025]
[1633079590784,0.0853248,44857.0,44856.0,0.025]
[1633079591787,0.0573248,44857.0,44849.0,0.49481739]
[1633079592185,0.05294378,44856.0,44849.0,0.49481739]
[1633079592393,0.3905852,44856.0,44849.0,0.49481739]
[1633079592788,0.4405852,44856.0,44849.0,0.49481739]
[1633079592988,0.1060792,44856.0,44849.0,0.49481739]
[1633079593795,0.1060792,44856.0,44843.0,0.0223]
[1633079593998,0.00126049,44850.0,44839.0,0.223004]
[1633079594196,0.00439591,44850.0,44849.0,0.015]
[1633079594401,0.67730691,44850.0,44849.0,0.015]
[1633079594600,0.28414769,44850.0,44849.0,0.015]
[1633079594793,0.33414769,44850.0,44849.0,0.015]
[1633079595200,0.3328872,44850.0,44849.0,0.015]
[1633079595398,0.1060792,44850.0,44849.0,0.015]
[1633079595795,0.0560792,44850.0,44848.0,0.22516105]
[1633079596194,0.0840792,44850.0,44849.0,0.026]
[1633079596395,0.0840792,44850.0,44848.0,0.19433838]
[1633079596795,0.4182961,44850.0,44848.0,0.19433838]
[1633079597796,0.3902961,44850.0,44848.0,0.19433838]
[1633079598194,0.3902961,44850.0,44848.0,0.22133838]
[1633079598195,0.4182961,44850.0,44848.0,0.22133838]
[1633079599403,0.0837471,44850.0,44848.0,0.22133838]
[1633079599605,0.0837471,44850.0,44848.0,0.19433838]
[1633079599798,0.0557471,44850.0,44848.0,0.19433838]
[1633079599999,0.00280332,44850.0,44848.0,0.19433838]
[1633079600197,0.05294378,44849.0,44848.0,0.19433838]
[1633079600398,0.0557471,44849.0,44848.0,0.19433838]
[1633079602801,0.0837471,44849.0,44848.0,0.19433838]
[1633079604404,0.0837471,44849.0,44845.0,0.223013]
[1633079604604,0.23614209,44847.0,44845.0,0.223013]
[1633079604805,0.05294378,44846.0,44845.0,0.208013]
[1633079605002,0.0557471,44846.0,44845.0,0.208013]
[1633079605609,0.0557471,44846.0,44845.0,0.40473138]
[1633079605804,0.0557471,44846.0,44845.0,0.40434438]
[1633079606404,0.0557471,44846.0,44845.0,0.207626]
[1633079606604,0.0847471,44846.0,44845.0,0.207626]
[1633079607210,0.0847471,44846.0,44839.0,0.223065]
[1633079607408,0.0852772,44846.0,44839.0,0.223065]
[1633079607805,0.20233398,44845.0,44839.0,0.223065]
[1633079608007,0.05294378,44844.0,44839.0,0.223065]
[1633079608210,0.0557471,44844.0,44840.0,0.223054]
[1633079608807,0.0837471,44844.0,44840.0,0.223054]
[1633079609011,0.39605512,44844.0,44840.0,0.223054]
[1633079609208,0.36805512,44844.0,44840.0,0.223054]
[1633079609408,0.0557471,44844.0,44841.0,0.334536]
[1633079609610,0.0557471,44844.0,44840.0,0.223054]
[1633079609809,0.37060817,44844.0,44840.0,0.103054]
[1633079610208,0.0557471,44844.0,44843.0,2.18096932]
[1633079610809,0.0860154,44844.0,44843.0,2.18096932]
[1633079612010,0.0570154,44844.0,44843.0,2.18096932]
[1633079612808,0.0850154,44844.0,44843.0,2.18096932]
[1633079614019,0.0570154,44844.0,44843.0,2.18096932]
[1633079614815,0.0860154,44844.0,44843.0,2.18096932]
[1633079616012,0.0860154,44844.0,44840.0,0.103054]
[1633079616214,0.3915964,44844.0,44840.0,0.103054]
[1633079616816,0.4195964,44844.0,44839.0,0.223065]
[1633079617015,0.4695964,44844.0,44839.0,0.223065]
[1633079617215,0.334608,44842.0,44839.0,0.223065]
[1633079617419,0.05294378,44841.0,44839.0,0.223065]
[1633079617616,0.0557471,44841.0,44839.0,0.223065]
[1633079618815,0.0837471,44841.0,44839.0,0.223065]
[1633079620117,0.0557471,44841.0,44839.0,0.223065]
[1633079620717,0.0837471,44841.0,44839.0,0.223065]
[1633079621918,0.0557471,44841.0,44839.0,0.223065]
[1633079622584,0.05294378,44840.0,44839.0,0.223065]
[1633079622780,0.0557471,44840.0,44839.0,0.223065]
[1633079623783,0.0557471,44840.0,44839.0,0.799873]
[1633079623982,0.0557471,44840.0,44839.0,0.449873]
[1633079624183,0.0557471,44840.0,44839.0,0.223065]
[1633079624784,0.0827471,44840.0,44839.0,0.214369]
[1633079625985,0.0927471,44840.0,44839.0,0.214369]
[1633079626385,0.0657471,44840.0,44839.0,0.214369]
[1633079626784,0.0937471,44840.0,44839.0,0.214369]